bitfinex/quotes_SOLUSD_20240925
["timestamp","ask_amount","ask_price","bid_price","bid_amount"]
[1727248783010,23.776884,149.42,149.37,30.0725545]
[1727248783304,6.6935,149.4,149.37,30.0725545]
[1727248783507,6.6931,149.41,149.37,30.0725545]
[1727248785681,20.0,149.43,149.37,30.0725545]
[1727248785882,1.67336869,149.42,149.37,30.0725545]
[1727248786087,8.36596869,149.42,149.37,30.0725545]
[1727248786594,6.6938,149.4,149.37,30.0725545]
[1727248786787,1.67352561,149.39,149.37,30.0725545]
[1727248786993,23.776884,149.43,149.37,30.0725545]
[1727248787500,30.468984,149.43,149.37,30.0725545]
[1727248787687,1.67338484,149.42,149.37,30.0725545]
[1727248788407,1.67338484,149.42,149.37,42.13589629]
[1727248788614,1.6732949,149.41,149.37,30.0725545]
[1727248788789,23.776884,149.45,149.37,30.0725545]
[1727248788989,6.6925,149.42,149.37,30.0725545]
[1727248789789,6.6923,149.43,149.37,30.0725545]
[1727248789989,6.6923,149.43,149.38,12.06334179]
[1727248790215,6.6923,149.43,149.38,42.06334179]
[1727248790516,20.0,149.47,149.38,42.06334179]
[1727248790702,6.6917,149.44,149.38,42.06334179]
[1727248791214,6.6909,149.46,149.38,42.06334179]
[1727248791395,6.6904,149.47,149.4,12.06334179]
[1727248791596,6.6904,149.47,149.41,16.113]
[1727248791795,6.6908,149.46,149.41,16.113]
[1727248791991,6.6912,149.45,149.41,16.113]
[1727248792402,6.6907,149.46,149.41,16.113]
[1727248792605,6.6907,149.46,149.41,46.113]
[1727248793019,16.7213,149.51,149.41,46.113]
[1727248793316,6.6903,149.47,149.41,46.113]
[1727248794041,16.7213,149.51,149.41,46.113]
[1727248794337,6.6906,149.47,149.41,46.113]
[1727248795836,6.6898,149.48,149.42,1.33835981]
[1727248796023,6.6898,149.48,149.42,31.33835981]
[1727248796549,20.0,149.47,149.37,0.0725545]
[1727248796710,20.0,149.47,149.33,0.4591115]
[1727248796711,6.6961,149.34,149.33,0.4591115]
[1727248796912,8.3709131,149.34,149.33,30.4591115]
[1727248797214,6.6961,149.34,149.33,30.4591115]
[1727248797434,6.6961,149.34,149.33,0.4591115]
[1727248797640,32.14764499,149.34,149.33,0.4591115]
[1727248799660,20.0,149.37,149.33,0.4591115]
[1727248799818,6.6957,149.35,149.33,0.4591115]
[1727248800025,6.6952,149.36,149.33,0.4591115]
[1727248800424,1.67423705,149.35,149.33,0.4591115]
[1727248800648,20.0,149.4,149.33,0.4591115]
[1727248801363,6.6947,149.38,149.33,0.4591115]
[1727248802534,1.67398409,149.37,149.33,0.4591115]
[1727248802733,6.6951,149.37,149.33,0.4591115]
[1727248803467,6.6952,149.36,149.33,0.4591115]
[1727248803759,1.67415935,149.35,149.33,0.4591115]
[1727248804255,30.472984,149.34,149.33,0.4591115]
[1727248809257,50.472984,149.34,149.33,0.4591115]
[1727248810351,6.6988,149.28,149.27,0.4247545]
[1727248811061,6.6983,149.3,149.27,0.4247545]
[1727248811437,20.0,149.33,149.27,0.4247545]
[1727248811438,6.6985,149.29,149.27,0.4247545]
[1727248812176,6.6979,149.3,149.27,0.4247545]
[1727248812345,23.776884,149.33,149.27,0.4247545]
[1727248812539,6.6979,149.3,149.27,0.4247545]
[1727248813660,6.6986,149.29,149.27,0.4247545]
[1727248813851,6.6984,149.29,149.27,0.4247545]
[1727248814679,23.776884,149.33,149.27,0.4247545]
[1727248814964,6.6988,149.28,149.27,0.4247545]
[1727248817969,6.6988,149.28,149.27,0.319135]
[1727248818672,6.6983,149.29,149.27,0.319135]
[1727248819043,6.6988,149.28,149.27,0.319135]
[1727248819247,43.776884,149.31,149.27,0.319135]
[1727248819477,6.6984,149.29,149.27,0.319135]
[1727248820082,6.698,149.3,149.27,0.319135]
[1727248821076,6.6983,149.29,149.27,0.319135]
[1727248821579,20.0,149.33,149.27,0.319135]
[1727248821876,6.6979,149.3,149.27,0.319135]
[1727248822077,6.6975,149.31,149.27,0.319135]
[1727248822250,6.6979,149.3,149.27,0.319135]
[1727248823864,6.6973,149.32,149.29,16.6357]
[1727248824078,6.6966,149.33,149.29,16.6357]
[1727248824373,6.6961,149.34,149.29,16.6357]
[1727248824578,6.696,149.35,149.29,16.6357]
[1727248824779,6.6962,149.34,149.29,16.6357]
[1727248825975,6.6962,149.34,149.3,1.33937898]
[1727248826355,6.97228502,149.37,149.29,16.6357]
[1727248826553,6.6953,149.36,149.3,1.33922932]
[1727248826765,6.97228502,149.37,149.3,1.33922932]
[1727248826766,6.6948,149.37,149.3,1.33922932]
[1727248826973,6.6952,149.36,149.3,1.33922932]
[1727248828779,6.6952,149.36,149.29,16.6357]
[1727248831672,6.6948,149.37,149.3,16.44393264]
[1727248832780,6.6948,149.37,149.3,15.10483813]
[1727248834107,0.044369,149.43,149.32,6.4164]
[1727248834284,6.694,149.39,149.34,16.6357]
[1727248834473,6.694,149.39,149.35,1.33884155]
[1727248834673,6.6935,149.4,149.35,1.33884155]
[1727248835084,0.044369,149.43,149.35,1.33884155]
[1727248835293,6.693,149.41,149.35,1.33884155]
[1727248835798,6.693,149.41,149.34,16.6357]
[1727248836304,1.71764066,149.43,149.34,16.6357]
[1727248836487,16.774669,149.43,149.34,16.6357]
[1727248836804,6.6948,149.37,149.34,16.6357]
[1727248837099,6.6951,149.37,149.34,16.6357]
[1727248837595,6.6956,149.35,149.34,16.6357]
[1727248838107,6.6948,149.37,149.34,16.6357]
[1727248838778,0.044369,149.43,149.34,16.6357]
[1727248839278,6.6948,149.37,149.34,16.6357]
[1727248839597,0.044369,149.43,149.34,16.6357]
[1727248839817,1.71803263,149.43,149.34,16.6357]
[1727248839973,6.6956,149.35,149.34,16.6357]
[1727248840296,6.6952,149.36,149.34,16.6357]
[1727248840878,16.7336,149.4,149.34,16.6357]
[1727248841197,6.6947,149.38,149.34,16.6357]
[1727248841587,1.67370967,149.42,149.34,16.6357]
[1727248841588,21.67370967,149.42,149.34,16.6357]
[1727248841769,0.044369,149.43,149.34,16.6357]
[1727248841974,6.693,149.41,149.34,16.6357]
[1727248842375,0.044369,149.43,149.34,16.6357]
[1727248842599,6.736869,149.43,149.34,16.6357]
[1727248842907,6.6933,149.41,149.34,16.6357]
[1727248844905,0.044369,149.43,149.34,16.6357]
[1727248845219,6.736869,149.43,149.35,6.3312]
[1727248846182,0.044369,149.43,149.35,21.43603813]
[1727248847105,0.044369,149.43,149.36,16.3159]
[1727248850677,6.6927,149.42,149.36,16.3159]
[1727248853195,6.736469,149.43,149.36,16.3159]
[1727248854505,1.67322426,149.42,149.36,16.3159]
[1727248854719,6.6942,149.39,149.36,16.3159]
[1727248856211,6.6943,149.38,149.36,16.3159]
[1727248857706,6.6947,149.37,149.36,16.3159]
[1727248858009,6.6935,149.4,149.36,16.3159]
[1727248858314,6.693,149.41,149.36,16.3159]
[1727248858606,6.736769,149.43,149.36,16.3159]
[1727248858788,6.6927,149.42,149.36,16.3159]
[1727248858983,6.736469,149.43,149.36,16.3159]
[1727248859212,0.044369,149.43,149.36,16.3159]
[1727248859698,6.736469,149.43,149.36,16.3159]
[1727248860901,6.6926,149.42,149.36,16.3159]
[1727248861391,0.044369,149.43,149.36,16.3159]
[1727248862224,0.044369,149.43,149.37,25.11536206]
[1727248862507,0.2909495,149.48,149.39,23.776884]
[1727248862508,6.6903,149.47,149.39,23.776884]
[1727248864313,6.6908,149.46,149.38,22.7128]
[1727248864694,0.2909495,149.48,149.39,23.776884]
[1727248864896,6.9811495,149.48,149.39,23.776884]
[1727248865093,6.6903,149.47,149.39,23.776884]
[1727248865313,1.67272082,149.46,149.38,22.7128]
[1727248865513,1.67290425,149.45,149.38,22.7128]
[1727248865822,23.776884,149.47,149.38,22.7128]
[1727248866029,1.67313707,149.46,149.38,22.7128]
[1727248866193,6.6925,149.43,149.38,22.7128]
[1727248866395,6.693,149.41,149.38,22.7128]
[1727248867020,6.6925,149.42,149.38,22.7128]
[1727248867316,6.6921,149.43,149.38,22.7128]
[1727248867692,23.776884,149.47,149.38,22.7128]
[1727248867896,6.6916,149.44,149.38,22.7128]
[1727248869009,23.776884,149.47,149.38,22.7128]
[1727248869207,6.6908,149.46,149.38,22.7128]
[1727248870324,6.6912,149.45,149.38,22.7128]
[1727248870921,6.6916,149.44,149.38,22.7128]
[1727248871319,1.96394204,149.48,149.38,22.7128]
[1727248871611,6.6912,149.45,149.38,22.7128]
[1727248874927,6.6912,149.45,149.39,1.33833035]
[1727248875131,6.6912,149.45,149.38,22.7128]
[1727248875622,0.2909495,149.48,149.38,22.7128]
[1727248875835,6.6912,149.45,149.38,22.7128]
[1727248876525,0.2909495,149.48,149.38,22.7128]
[1727248876734,6.6908,149.46,149.38,22.7128]
[1727248877237,0.2909495,149.48,149.39,23.776884]
[1727248879821,6.6912,149.45,149.38,22.7128]
[1727248880535,6.6907,149.46,149.38,32.36012158]
[1727248880741,6.803339,149.47,149.39,1.33830385]
[1727248881109,6.803339,149.47,149.4,9.64732158]
[1727248881420,6.803339,149.47,149.41,1.33816369]
[1727248881617,0.113039,149.47,149.4,9.64732158]
[1727248881818,6.803339,149.47,149.4,9.64732158]
[1727248882718,0.113039,149.47,149.4,9.64732158]
[1727248887045,6.6907,149.46,149.38,22.7128]
[1727248887262,6.6912,149.45,149.38,22.7128]
[1727248887725,1.7856091,149.47,149.38,22.7128]
[1727248887934,6.6908,149.46,149.38,22.7128]
[1727248888113,6.803339,149.47,149.38,22.7128]
[1727248888311,6.803339,149.47,149.39,9.64732158]
[1727248888924,0.113039,149.47,149.4,23.776884]
[1727248889110,0.113039,149.47,149.41,15.3847]
[1727248889319,0.113039,149.47,149.41,25.03202158]
[1727248890448,0.082899,149.47,149.41,25.03202158]
[1727248891535,0.082899,149.47,149.42,6.2781]
[1727248894340,6.773199,149.47,149.42,6.2781]
[1727248898716,0.082899,149.47,149.42,6.2781]
[1727248900650,0.082899,149.47,149.43,10.98196141]
[1727248900850,0.082899,149.47,149.43,9.64395532]
[1727248901236,0.243352,149.49,149.45,9.64395532]
[1727248902028,0.243352,149.49,149.45,9.637506]
[1727248904249,0.243352,149.49,149.46,30.282484]
[1727248904843,0.243352,149.49,149.47,9.637506]
[1727248905050,0.243352,149.53,149.48,15.0369]
[1727248908136,0.243352,149.53,149.49,23.776884]
[1727248908775,0.243352,149.53,149.49,33.41439]
[1727248909786,0.243352,149.53,149.48,15.0369]
[1727248910264,6.6881,149.52,149.48,15.0369]
[1727248910562,6.6885,149.51,149.48,15.0369]
[1727248911433,0.243352,149.53,149.48,15.0369]
[1727248911933,0.243352,149.53,149.48,24.674406]
[1727248912139,0.243352,149.53,149.48,15.0369]
[1727248913674,0.243352,149.53,149.49,1.33734786]
[1727248914447,0.243352,149.53,149.5,25.11411212]
[1727248915140,0.243352,149.53,149.48,15.0369]
[1727248915839,0.243352,149.53,149.49,25.11419447]
[1727248916741,0.3502635,149.58,149.53,16.6094]
[1727248916961,0.3502635,149.58,149.54,1.33691312]
[1727248918244,0.3502635,149.58,149.53,16.6094]
[1727248920648,6.6863,149.56,149.53,16.6094]
[1727248920859,7.0355635,149.58,149.53,16.6094]
[1727248923203,0.3502635,149.58,149.53,16.6094]
[1727248924582,6.6877,149.53,149.49,16.6094]
[1727248925977,6.6872,149.54,149.49,16.6094]
[1727248926290,6.6868,149.55,149.49,16.6094]
[1727248927775,22.02196668,149.58,149.49,16.6094]
[1727248927976,6.6863,149.56,149.49,16.6094]
[1727248928785,0.3502635,149.58,149.49,16.6094]
[1727248928786,6.6859,149.57,149.49,16.6094]
[1727248929788,2.02181559,149.58,149.49,16.6094]
[1727248930074,6.6867,149.55,149.49,16.6094]
[1727248931148,6.6858,149.57,149.49,16.6094]
[1727248934773,6.6866,149.56,149.5,23.776884]
[1727248935252,6.6866,149.56,149.49,16.6094]
[1727248936264,6.6871,149.54,149.49,16.6094]
[1727248936453,6.6867,149.55,149.5,1.33742848]
[1727248937257,6.6867,149.55,149.49,16.6094]
[1727248937654,1.67178475,149.54,149.49,16.6094]
[1727248937980,40.8414475,149.58,149.49,16.6094]
[1727248937981,6.6886,149.51,149.49,16.6094]
[1727248939570,16.7165,149.56,149.49,16.6094]
[1727248939571,6.6881,149.52,149.49,16.6094]
[1727248940077,0.3502635,149.58,149.5,23.776884]
[1727248940266,7.0357635,149.58,149.5,23.776884]
[1727248941473,0.3502635,149.58,149.49,16.6094]
[1727248941655,6.6861,149.57,149.49,16.6094]
[1727248941857,1.67175596,149.56,149.49,16.6094]
[1727248942659,6.6861,149.57,149.49,16.6094]
[1727248943356,0.3502635,149.58,149.49,16.6094]
[1727248943765,6.6863,149.56,149.49,16.6094]
[1727248944592,0.3502635,149.58,149.49,16.6094]
[1727248944895,0.3502635,149.58,149.5,23.776884]
[1727248945576,0.3502635,149.58,149.5,33.41418832]
[1727248950667,0.3502635,149.58,149.51,22.869]
[1727248950874,0.3502635,149.58,149.52,34.75125679]
[1727248951396,0.3502635,149.58,149.52,33.41418832]
[1727248953299,0.3502635,149.58,149.53,1.33691876]
[1727248954101,0.3502635,149.58,149.54,23.776884]
[1727248954404,0.3502635,149.58,149.55,1.33686609]
[1727248955410,0.3502635,149.58,149.56,1.33686708]
[1727248956176,0.3502635,149.58,149.57,46.53776229]
[1727248956370,0.0725545,149.6,149.58,23.776884]
[1727248956604,0.0725545,149.6,149.59,1.33643412]
[1727248956971,0.0725545,149.6,149.58,9.63730432]
[1727248957987,0.0725545,149.6,149.59,1.33636831]
[1727248958379,0.0725545,149.6,149.58,9.63730432]
[1727248958588,0.0725545,149.6,149.59,1.33636985]
[1727248958792,0.0725545,149.6,149.58,9.63730432]
[1727248959003,0.0725545,149.6,149.59,1.33637007]
[1727248960813,0.243352,149.62,149.59,1.33637007]
[1727248960814,0.243352,149.62,149.6,23.776884]
[1727248960984,0.243352,149.62,149.6,33.41418832]
[1727248961609,0.243352,149.62,149.59,23.776884]
[1727248963987,0.243352,149.62,149.6,10.97350216]
[1727248964312,0.243352,149.62,149.6,9.63730432]
[1727248965202,0.243352,149.62,149.61,1.33620616]
[1727248965618,0.243352,149.62,149.6,9.63730432]
[1727248965995,0.243352,149.62,149.61,16.56178396]
[1727248967017,0.3502635,149.67,149.62,6.1985]
[1727248967318,0.3502635,149.67,149.63,1.3359784]
[1727248967511,0.3502635,149.67,149.62,6.1985]
[1727248970483,0.3502635,149.67,149.63,1.33613001]
[1727248971007,0.3502635,149.67,149.62,6.1985]
[1727248973220,0.3502635,149.67,149.63,23.776884]
[1727248973521,0.3502635,149.67,149.62,6.1985]
[1727248974197,0.3502635,149.67,149.63,23.776884]
[1727248976315,0.3502635,149.67,149.64,9.63730432]
[1727248977411,0.3502635,149.67,149.65,1.33579717]
[1727248978118,0.3502635,149.67,149.66,15.0151]
[1727248979122,0.3502635,149.67,149.66,16.3508705]
[1727248980123,0.3502635,149.67,149.66,15.0151]
[1727248980603,0.0725545,149.69,149.67,6.1993]
[1727248980802,0.0725545,149.69,149.68,1.33555132]
[1727248982704,0.0725545,149.69,149.68,34.74973964]
[1727248984624,0.0725545,149.69,149.68,53.41418832]
[1727248986639,0.0725545,149.69,149.68,54.74944048]
[1727248987019,0.0725545,149.69,149.68,53.41418832]
[1727248987706,0.243352,149.71,149.69,15.3248]
[1727248987931,0.243352,149.71,149.7,33.41418832]
[1727248990040,0.243352,149.71,149.7,54.7493495]
[1727248990532,0.243352,149.71,149.7,54.74933737]
[1727248991333,0.3502635,149.76,149.7,53.41418832]
[1727248991536,0.3502635,149.76,149.74,9.63730432]
[1727248991727,0.3502635,149.76,149.75,1.33490867]
[1727248992845,0.0725545,149.78,149.75,1.33490867]
[1727248993023,0.3105139,149.76,149.75,40.43659267]
[1727248993218,0.3105139,149.76,149.75,50.07389699]
[1727248993428,0.3105139,149.76,149.75,48.73898832]
[1727248993738,0.3105139,149.76,149.75,68.73898832]
[1727248994046,0.3105139,149.76,149.75,70.0737239]
[1727248994240,0.3105139,149.76,149.75,68.73898832]
[1727248995920,0.3105139,149.76,149.75,48.73898832]
[1727248996421,0.3105139,149.76,149.75,68.73898832]
[1727248998344,0.3105139,149.76,149.75,15.3248]
[1727248999334,0.3105139,149.76,149.73,6.0318]
[1727249000354,0.3105139,149.76,149.71,15.3248]
[1727249001037,0.3105139,149.76,149.72,10.97251044]
[1727249001935,0.3105139,149.76,149.74,9.63730432]
[1727249003450,0.3105139,149.76,149.72,23.776884]
[1727249003639,0.3105139,149.76,149.73,20.0]
[1727249004250,0.3105139,149.76,149.74,1.33506987]
[1727249004635,0.3105139,149.76,149.73,20.0]
[1727249004937,0.3105139,149.76,149.72,33.41418832]
[1727249006441,0.3105139,149.76,149.73,1.33503267]
[1727249007243,0.3105139,149.76,149.72,33.41418832]
[1727249011044,0.3105139,149.76,149.72,23.776884]
[1727249011857,0.3105139,149.76,149.71,15.3248]
[1727249012935,0.3105139,149.76,149.72,1.33521461]
[1727249013136,6.9879139,149.76,149.69,50.41667484]
[1727249013341,0.3105139,149.76,149.69,44.38487484]
[1727249015356,0.3105139,149.76,149.7,9.63730432]
[1727249016061,0.3105139,149.76,149.71,23.776884]
[1727249016858,0.3105139,149.76,149.7,23.776884]
[1727249019759,0.3105139,149.76,149.7,20.0]
[1727249020850,0.3105139,149.76,149.68,6.95771634]
[1727249021059,1.9457,149.75,149.68,20.0]
[1727249021353,1.9457,149.75,149.68,6.96058127]
[1727249022371,1.9457,149.75,149.69,23.776884]
[1727249023262,2.2562139,149.75,149.69,23.776884]
[1727249023453,2.2562139,149.75,149.68,6.96058127]
[1727249024638,0.3105139,149.75,149.69,23.776884]
[1727249025441,0.3105139,149.75,149.68,6.96058127]
[1727249026051,6.6782,149.74,149.68,6.96058127]
[1727249026267,6.6786,149.73,149.68,6.96058127]
[1727249026965,6.6782,149.74,149.68,6.96058127]
[1727249028154,6.9886139,149.75,149.68,6.96058127]
[1727249028569,0.3105139,149.75,149.68,6.96058127]
[1727249030671,6.9882139,149.75,149.68,6.96058127]
[1727249033247,0.3105139,149.75,149.69,1.33561752]
[1727249033553,0.3105139,149.75,149.66,9.63730432]
[1727249033768,0.3105139,149.75,149.67,23.776884]
[1727249034070,6.6782,149.74,149.68,6.96142394]
[1727249035178,6.6787,149.73,149.68,6.96142394]
[1727249035345,1.9457,149.74,149.68,6.96142394]
[1727249035549,6.6799,149.71,149.68,6.96142394]
[1727249036969,6.6799,149.71,149.63,60.77355539]
[1727249037173,6.6799,149.71,149.65,6.96384927]
[1727249040377,1.9457,149.74,149.65,6.96384927]
[1727249040756,8.6243,149.74,149.65,6.96384927]
[1727249042170,6.6787,149.73,149.65,6.96384927]
[1727249044981,1.9457,149.74,149.66,1.33583828]
[1727249045184,0.3105139,149.75,149.66,33.41418832]
[1727249045354,0.3105139,149.75,149.68,9.63730432]
[1727249046374,0.3105139,149.75,149.67,6.2666]
[1727249046679,0.3105139,149.75,149.69,23.776884]
[1727249046855,0.3105139,149.75,149.69,39.088284]
[1727249047481,0.3105139,149.75,149.69,15.3114]
[1727249048580,0.3105139,149.75,149.7,1.3355233]
[1727249048963,0.3105139,149.75,149.69,15.3114]
[1727249049901,0.3105139,149.75,149.7,1.33540395]
[1727249050186,0.3105139,149.75,149.7,23.776884]
[1727249050572,0.3105139,149.75,149.69,15.3114]
[1727249051772,0.3105139,149.75,149.7,1.33540665]
[1727249052081,0.3105139,149.75,149.71,23.776884]
[1727249052660,0.3105139,149.75,149.7,9.63730432]
[1727249052865,0.3105139,149.75,149.7,20.0]
[1727249053060,0.3105139,149.75,149.69,15.3114]
[1727249053269,0.3105139,149.75,149.7,20.0]
[1727249053666,0.3105139,149.75,149.68,20.0]
[1727249054258,6.6777,149.76,149.68,20.0]
[1727249054472,0.2297027,149.75,149.68,20.0]
[1727249055277,0.2297027,149.75,149.69,23.776884]
[1727249056587,0.2297027,149.75,149.7,1.33540604]
[1727249056790,0.2297027,149.75,149.69,23.776884]
[1727249060195,0.2297027,149.75,149.7,9.63730432]
[1727249060679,0.2297027,149.75,149.71,23.776884]
[1727249062284,0.2297027,149.75,149.68,29.63730432]
[1727249062793,0.2297027,149.75,149.67,6.96203994]
[1727249063105,6.2040027,149.75,149.67,6.96203994]
[1727249063283,7.8736822,149.75,149.67,6.96203994]
[1727249063684,6.6783,149.74,149.67,6.96203994]
[1727249065485,10.29408222,149.73,149.67,6.96203994]
[1727249066704,8.6244,149.73,149.67,6.96203994]
[1727249066877,1.9457,149.73,149.67,6.96203994]
[1727249067079,8.6244,149.73,149.67,6.96203994]
[1727249067521,0.2297027,149.75,149.69,59.63730432]
[1727249067814,0.2297027,149.75,149.73,9.63730432]
[1727249068502,0.2297027,149.75,149.72,9.63730432]
[1727249068987,0.2297027,149.75,149.68,6.96789745]
[1727249070478,0.2297027,149.75,149.69,1.33546583]
[1727249070676,0.2297027,149.75,149.68,6.96789745]
[1727249071307,0.2297027,149.75,149.69,23.776884]
[1727249076381,0.2297027,149.75,149.7,1.33546494]
[1727249076701,0.2297027,149.75,149.71,23.776884]
[1727249076902,0.2297027,149.75,149.72,1.33530174]
[1727249079202,0.2297027,149.75,149.71,23.776884]
[1727249079512,0.2297027,149.75,149.72,21.33518998]
[1727249079685,0.2297027,149.75,149.73,23.776884]
[1727249080202,0.2297027,149.75,149.71,43.776884]
[1727249083520,0.2297027,149.75,149.71,20.0]
[1727249085187,0.2297027,149.75,149.7,6.96541558]
[1727249088392,0.2297027,149.75,149.71,1.33544232]
[1727249089707,0.2297027,149.75,149.72,23.776884]
[1727249089937,0.2297027,149.75,149.73,1.33517944]
[1727249090105,0.2297027,149.75,149.71,23.776884]
[1727249090305,0.2297027,149.75,149.72,9.60212518]
[1727249091905,0.2297027,149.75,149.71,23.776884]
[1727249103610,0.2297027,149.75,149.72,1.33530062]
[1727249106020,0.2297027,149.75,149.72,30.9374258]
[1727249106220,0.2297027,149.75,149.73,23.776884]
[1727249106531,0.2297027,149.75,149.74,1.33512375]
[1727249106835,0.2297027,149.75,149.74,54.71394733]
[1727249108223,0.2297027,149.75,149.74,53.37900918]
[1727249113338,0.2297027,149.75,149.74,54.71393057]
[1727249116024,0.2297027,149.75,149.74,53.37900918]
[1727249116922,0.2297027,149.75,149.74,54.71391906]
[1727249118441,0.2297027,149.75,149.74,53.37900918]
[1727249126851,0.2297027,149.75,149.74,53.37900918]
[1727249128531,0.2297027,149.75,149.73,20.0]
[1727249130531,0.2297027,149.75,149.72,6.98090678]
[1727249143862,1.89931126,149.75,149.67,21.16222358]
[1727249144042,1.89931126,149.75,149.69,6.98487164]
[1727249146544,5.9743,149.73,149.69,6.98487164]
[1727249146744,14.32305101,149.73,149.67,1.16222358]
[1727249146972,14.32305101,149.73,149.66,6.98643464]
[1727249147358,5.9743,149.73,149.66,6.98643464]
[1727249148452,7.6441854,149.73,149.66,6.98643464]
[1727249148647,14.3229854,149.73,149.66,6.98643464]
[1727249148843,6.6791,149.72,149.66,6.98643464]
[1727249149079,1.67010731,149.71,149.62,20.1219874]
[1727249149571,1.67010731,149.71,149.64,6.98760501]
[1727249150769,6.68,149.7,149.64,6.98760501]
[1727249150972,1.9457,149.69,149.64,6.98760501]
[1727249153078,1.9457,149.69,149.65,1.33611594]
[1727249153478,1.9457,149.69,149.64,6.98760501]
[1727249155250,7.92,149.73,149.64,6.98760501]
[1727249157578,14.5987,149.73,149.64,6.98760501]
[1727249160468,14.7214912,149.73,149.64,6.98760501]
[1727249160664,8.0427912,149.73,149.65,25.11288964]
[1727249160978,8.0427912,149.73,149.65,33.37900918]
[1727249161469,8.0427912,149.73,149.64,6.98587363]
[1727249161774,16.39146617,149.73,149.64,6.98587363]
[1727249163981,16.39146617,149.73,149.64,16.58799881]
[1727249164177,14.7214912,149.73,149.64,16.58799881]
[1727249165286,8.0427912,149.73,149.64,16.58799881]
[1727249165465,8.0427912,149.73,149.65,23.776884]
[1727249167485,1.66979307,149.72,149.64,16.58799881]
[1727249168488,1.66979307,149.72,149.64,6.98587363]
[1727249170196,8.0427912,149.73,149.64,6.98587363]
[1727249170378,8.0427912,149.73,149.64,16.58799881]
[1727249171688,8.0427912,149.73,149.65,25.11281539]
[1727249172266,8.0427912,149.73,149.65,23.776884]
[1727249172467,8.0427912,149.73,149.66,1.3358359]
[1727249175099,0.1227912,149.73,149.66,30.93796108]
[1727249175292,0.1227912,149.73,149.68,9.60212518]
[1727249175481,0.1227912,149.73,149.66,20.0]
[1727249175807,0.1227912,149.73,149.66,26.98531126]
[1727249178698,1.79274298,149.73,149.66,26.98531126]
[1727249179608,0.1227912,149.73,149.66,26.98531126]
[1727249184103,0.1227912,149.73,149.67,1.33582098]
[1727249186312,0.1227912,149.73,149.66,26.98531126]
[1727249188387,0.1227912,149.73,149.67,9.60212518]
[1727249190703,0.1227912,149.73,149.68,25.1126287]
[1727249190902,0.1227912,149.73,149.68,23.776884]
[1727249196899,0.1227912,149.73,149.67,9.60212518]
[1727249196900,0.1227912,149.73,149.67,23.776884]
[1727249199395,0.1227912,149.73,149.66,36.58675907]
[1727249201414,0.1227912,149.73,149.66,26.98463389]
[1727249201837,1.79265394,149.73,149.66,26.98463389]
[1727249202000,6.6796,149.71,149.66,6.98463389]
[1727249202317,7.92,149.72,149.62,9.72411258]
[1727249203501,1.67005855,149.71,149.63,20.0]
[1727249203702,1.67017904,149.7,149.63,20.0]
[1727249204004,14.5991,149.72,149.63,20.0]
[1727249204517,1.67022718,149.71,149.63,20.0]
[1727249205222,14.5991,149.72,149.63,20.0]
[1727249205409,30.456384,149.71,149.64,6.98685008]
[1727249208099,23.776884,149.71,149.64,6.98685008]
[1727249208524,1.67030084,149.7,149.64,6.98685008]
[1727249209806,1.67030084,149.7,149.62,0.1219874]
[1727249209807,1.9457,149.67,149.62,0.1219874]
[1727249209999,1.67062526,149.66,149.62,0.1219874]
[1727249210423,1.9457,149.67,149.62,0.1219874]
[1727249213805,3.61633499,149.67,149.62,0.1219874]
[1727249214620,1.9457,149.67,149.62,0.1219874]
[1727249218531,8.627,149.67,149.62,0.1219874]
[1727249220018,1.9457,149.67,149.62,0.1219874]
[1727249225713,1.9457,149.71,149.62,1.45847248]
[1727249226022,8.6253,149.71,149.62,1.45847248]
[1727249226417,8.6253,149.71,149.62,0.1219874]
[1727249233143,5.9743,149.72,149.63,9.60212518]
[1727249233444,6.6791,149.72,149.64,1.33615024]
[1727249233633,0.1227912,149.73,149.63,9.60212518]
[1727249233831,6.8015912,149.73,149.63,9.60212518]
[1727249234035,0.1227912,149.73,149.64,15.6262]
[1727249236544,1.79268984,149.73,149.64,15.6262]
[1727249236729,0.1227912,149.73,149.64,15.6262]
[1727249238127,1.79268867,149.73,149.64,15.6262]
[1727249238647,0.1227912,149.73,149.64,15.6262]
[1727249239029,6.6793,149.72,149.64,15.6262]
[1727249239546,6.6793,149.72,149.64,25.22832518]